[Event "40th Eastman Open Ghent"]
[Site "Ghent"]
[Date "2017.07.16"]
[Round "3"]
[White "De Haas, Wouter"]
[Black "Froeyman, Helmut"]
[Result "0-1"]
[ECO "C88"]
[WhiteElo "2032"]
[BlackElo "2264"]
[Annotator "NA RC"]
[PlyCount "76"]
[EventDate "2017.??.??"]
[EventType "swiss"]
[EventCountry "BEL"]
[SourceTitle "playchess.com"]
[Source "ChessBase"]
[SourceQuality "1"]
[TimeControl "7200"]

1. e4 {[%emt 0:00:05]} e5 {[%emt 0:00:05]} 2. Nf3 {[%emt 0:00:08]} Nc6 {[%emt 0:00:04]} 3. Bb5 {[%emt 0:00:09]} a6 {[%emt 0:00:07]} 4. Ba4 {[%emt 0:00:07]} Nf6 {[%emt 0:00:10]} 5. O-O {[%emt 0:00:21]} Be7 {[%emt 0:00:11]} 6. Re1 {[%emt 0:00:35]} b5 {[%emt 0:00:10]} 7. Bb3 {[%emt 0:00:10]} d6 {[%emt 0:00:10]} 8. h3 {[%emt 0:01:08]} Na5 {[%emt 0:07:57]} 9. c3 {[%emt 0:01:35]} Nxb3 {[%emt 0:01:42]} 10. axb3 {[%emt 0:00:08]} Bb7 {[%emt 0:06:36]} 11. d3 {[%emt 0:00:20]} O-O {[%emt 0:00:12]} 12. Nbd2 {[%emt 0:00:20]} Re8 {[%emt 0:07:01] C90: Closed Ruy Lopez with 7...d6: Early deviations} (12... Nd7 13. b4 f5 14. Nf1 Kh8 15. b3 Qe8 16. c4 Qg6 17. Qe2 c5 18. Bd2 f4 19. Ra2 Qe6 20. Rea1 {1-0 (38) Rasulov,V (2512)-Dastan,B (2439) Nakhchivan 2014}) 13. b4 {[%emt 0:01:07]} h6 {[%emt 0:09:46]} 14. Nb3 {[%emt 0:01:12]} Rb8 $146 {[%emt 0:01:50]} ({Predecessor:} 14... Bf8 15. Na5 Bc8 16. Qc2 Nh5 17. d4 Qf6 18. Qd1 Nf4 19. Bxf4 Qxf4 {0-1 (38) Allahverdiyeva,A (1886)-Toth,N (1668) Prague 2016}) 15. Qc2 {[%emt 0:03:13]} Bf8 {[%emt 0:01:36]} 16. Be3 {[%emt 0:01:02]} Qd7 {[%emt 0:07:39]} 17. Na5 {[%emt 0:09:18]} Ba8 {[%emt 0:01:32]} 18. Nb3 {[%emt 0:00:55]} Bb7 {[%emt 0:00:25]} 19. Nfd2 {[%emt 0:01:09]} d5 {[%emt 0:08:43]} 20. Bc5 {[%emt 0:01:32]} Bd6 {[%emt 0:00:15]} 21. Nf1 {[%emt 0:04:03]} Qe6 {[%emt 0:01:59]} 22. f3 {[%emt 0:07:22]} Nh5 {[%emt 0:05:37]} 23. Ne3 {[%emt 0:01:27]} Nf4 {[%emt 0:01:36]} 24. Rad1 {[%emt 0:07:27]} Rbd8 {[%emt 0:01:09]} 25. Nf5 {[%emt 0:03:31]} Qg6 {[%emt 0:08:01]} 26. Ne3 {[%emt 0:03:29]} Nxh3+ {[%emt 0:01:54]} 27. Kf1 {[%emt 0:04:35]} Nf4 {[%emt 0:00:37]} 28. c4 {[%emt 0:01:34]} bxc4 {[%emt 0:03:26]} 29. dxc4 {[%emt 0:03:28]} dxe4 {[%emt 0:01:25]} 30. Na5 {[%emt 0:01:42]} Ba8 {[%emt 0:01:57]} 31. Bxd6 {[%emt 0:00:53]} cxd6 {[%emt 0:03:55]} 32. fxe4 {[%emt 0:04:19]} Bxe4 {[%emt 0:00:33]} 33. Qd2 {[%emt 0:00:56]} Re6 {[%emt 0:03:43]} 34. c5 {[%emt 0:01:36]} Rf6 {[%emt 0:01:21]} 35. Kg1 $19 {[%emt 0:02:28]} Nh3+ {[%emt 0:01:39]} 36. Kh2 {[%emt 0:00:07]} Nf2 {[%emt 0:01:29]} 37. Nac4 {[%emt 0:02:38]} Qh5+ {[%emt 0:02:07]} 38. Kg1 {[%emt 0:00:18]} Qh1# 0-1

[Event "40th Eastman Open Ghent"]
[Site "Ghent"]
[Date "2017.07.16"]
[Round "3"]
[White "Ten Have, Roland"]
[Black "Harakis, Alexis M"]
[Result "0-1"]
[ECO "C00"]
[WhiteElo "1919"]
[BlackElo "2284"]
[Annotator "RC"]
[PlyCount "50"]
[EventDate "2017.??.??"]
[EventType "swiss"]
[EventCountry "BEL"]
[SourceTitle "playchess.com"]
[Source "ChessBase"]
[SourceQuality "1"]
[TimeControl "7200"]

1. e4 {[%emt 0:43:16]} e6 2. b3 {[%emt 0:04:28]} b6 {[%emt 0:08:03]} 3. Bb2 {[%emt 0:03:26]} Bb7 {[%emt 0:00:08]} 4. Nc3 {[%emt 0:00:03]} c5 {[%emt 0:01:30]} 5. Nf3 {[%emt 0:01:42]} Nc6 {[%emt 0:00:19]} 6. d4 {[%emt 0:00:13]} Nxd4 {[%emt 0:00:27]} 7. Nxd4 {[%emt 0:00:04]} cxd4 {[%emt 0:00:05]} 8. Qxd4 {[%emt 0:00:07]} Nf6 {[%emt 0:00:09]} 9. f3 {[%emt 0:02:21]} Bc5 {[%emt 0:08:56]} 10. Qd2 {[%emt 0:00:10]} Qe7 {[%emt 0:00:39]} 11. a3 {[%emt 0:01:29]} e5 {[%emt 0:07:23]} 12. Nb5 {[%emt 0:05:53]} O-O {[%emt 0:16:16]} 13. b4 {[%emt 0:00:15]} a6 {[%emt 0:00:15]} 14. Nc7 {[%emt 0:04:23]} Bd6 {[%emt 0:01:12]} 15. Nxa8 {[%emt 0:00:21]} Rxa8 {[%emt 0:00:07]} 16. Bc4 {[%emt 0:00:54]} b5 {[%emt 0:04:58]} 17. Bb3 {[%emt 0:01:06]} Bc7 {[%emt 0:00:31]} 18. O-O {[%emt 0:00:18]} Bb6+ {[%emt 0:00:41]} 19. Kh1 {[%emt 0:00:01]} Nh5 {[%emt 0:00:53]} 20. Rfd1 {[%emt 0:01:32]} d5 {[%emt 0:12:17]} 21. Bxd5 {[%emt 0:03:40]} Rd8 {[%emt 0:00:48]} 22. Qc3 {[%emt 0:04:21]} Ng3+ {[%emt 0:00:51]} 23. hxg3 {[%emt 0:00:24]} Qg5 {[%emt 0:00:43]} 24. Bxf7+ {[%emt 0:00:41]} Kxf7 {[%emt 0:00:30]} 25. Qb3+ {[%emt 0:00:18]} Bd5 {[%emt 0:00:10]} 0-1

[Event "40th Eastman Open Ghent"]
[Site "Ghent"]
[Date "2017.07.16"]
[Round "4"]
[White "Sarrau, Jelle"]
[Black "Kitze, Alexander"]
[Result "1-0"]
[ECO "A05"]
[WhiteElo "2363"]
[BlackElo "2177"]
[Annotator "NA"]
[PlyCount "55"]
[EventDate "2017.??.??"]
[EventType "swiss"]
[EventCountry "BEL"]
[SourceTitle "playchess.com"]
[Source "ChessBase"]
[SourceQuality "1"]
[TimeControl "7200"]

1. Nf3 {[%emt 0:00:04]} Nf6 {[%emt 0:00:49]} 2. c4 {[%emt 0:00:07]} g6 {[%emt 0:00:11]} 3. Nc3 {[%emt 0:00:41]} d5 {[%emt 0:00:54]} 4. cxd5 {[%emt 0:01:18]} Nxd5 {[%emt 0:00:06]} 5. Qc2 {[%emt 0:00:25] A16: English Opening: 1...Nf6 with ...d5} (5. e4 Nxc3 6. dxc3 Qxd1+ 7. Kxd1 Nd7 8. Bf4 c6 9. Kc2 Nc5 10. Nd2 Bg7 11. Be3 Na4 12. Bc4 Nb6 13. Bb3 Nd7 14. a4 O-O 15. h4 h5 16. a5 Ne5 17. f3 {½-½ (48) So,W (2812)-Mamedyarov,S (2800) Paris 2017}) 5... Bg7 {[%emt 0:08:18]} 6. e4 {[%emt 0:07:01]} Nxc3 {[%emt 0:01:04]} 7. dxc3 {[%emt 0:00:13]} O-O {[%emt 0:00:56]} 8. Be3 {[%emt 0:00:18]} b6 {[%emt 0:05:47]} 9. Be2 $146 {[%emt 0:02:14]} ({Predecessor:} 9. h4 Bg4 10. Nh2 Be6 11. h5 c5 12. hxg6 hxg6 {0-1 (28) Bitalzadeh,A (2409)-Cigan,S (2343) Rogaska Slatina 2011}) 9... c5 {[%emt 0:00:42]} 10. h4 {[%emt 0:03:38]} h5 {[%emt 0:15:41]} 11. Ng5 {[%emt 0:02:11]} Nc6 {[%emt 0:01:40]} 12. f4 {[%emt 0:03:35]} e6 {[%emt 0:13:27]} 13. e5 {[%emt 0:07:19]} Ne7 {[%emt 0:12:05]} 14. Bf3 {[%emt 0:06:13]} Nd5 {[%emt 0:02:04]} 15. Bd2 {[%emt 0:02:46]} Bb7 {[%emt 0:02:33]} 16. O-O-O {[%emt 0:03:38]} b5 {[%emt 0:02:32]} (16... Qc7 $142) 17. Bxh5 {[%emt 0:02:05]} Ne7 {[%emt 0:04:11]} 18. Bf3 {[%emt 0:04:20]} Bxf3 {[%emt 0:00:45]} 19. Nxf3 {[%emt 0:00:11]} Qa5 {[%emt 0:02:31]} 20. Kb1 {[%emt 0:00:45]} Rfd8 {[%emt 0:01:21]} 21. h5 {[%emt 0:01:25]} Rd7 {[%emt 0:02:35]} 22. hxg6 {[%emt 0:02:14]} Nxg6 {[%emt 0:00:41]} 23. f5 {[%emt 0:02:06]} exf5 {[%emt 0:00:45]} 24. Qxf5 {[%emt 0:00:20]} (24. g4 $142) 24... Re7 $2 {[%emt 0:00:32]} (24... Nf8 25. e6 fxe6) 25. Bg5 {[%emt 0:00:23]} Re6 {[%emt 0:00:45]} 26. Rd7 {[%emt 0:00:17]} Rf8 {[%emt 0:00:16]} 27. Qh3 {[%emt 0:01:25]} Rfe8 {[%emt 0:00:49]} 28. Bf6 {[%emt 0:00:31]} 1-0

[Event "40th Eastman Open Ghent"]
[Site "Ghent"]
[Date "2017.07.16"]
[Round "4"]
[White "Van Beers, Eddy"]
[Black "Vermaat, Marcel"]
[Result "1-0"]
[ECO "B22"]
[WhiteElo "2312"]
[BlackElo "2160"]
[Annotator "ChessBase"]
[PlyCount "111"]
[EventDate "2017.??.??"]
[EventType "swiss"]
[EventCountry "BEL"]
[SourceTitle "playchess.com"]
[Source "ChessBase"]
[SourceQuality "1"]
[TimeControl "7200"]

1. e4 {[%emt 0:00:02]} c5 {[%emt 0:00:06]} 2. c3 {[%emt 0:00:05]} Nf6 {[%emt 0:00:55]} 3. e5 {[%emt 0:00:10]} Nd5 {[%emt 0:00:06]} 4. d4 {[%emt 0:00:03]} e6 {[%emt 0:02:27]} 5. Nf3 {[%emt 0:01:46]} cxd4 {[%emt 0:00:40]} 6. cxd4 {[%emt 0:01:49]} Nc6 {[%emt 0:00:11]} 7. Bc4 {[%emt 0:01:23]} d6 {[%emt 0:00:24]} 8. O-O {[%emt 0:00:28]} dxe5 {[%emt 0:00:28]} 9. dxe5 {[%emt 0:01:34]} Be7 {[%emt 0:00:26]} 10. Qe2 {[%emt 0:00:52]} Qc7 {[%emt 0:01:00]} 11. Rd1 {[%emt 0:10:04]} O-O {[%emt 0:03:35]} 12. Bxd5 {[%emt 0:04:33]} exd5 {[%emt 0:00:09]} 13. Nc3 {[%emt 0:00:07]} Bg4 {[%emt 0:01:28]} 14. Nxd5 {[%emt 0:05:59]} Bxf3 {[%emt 0:00:31]} 15. gxf3 {[%emt 0:03:36]} Qc8 {[%emt 0:00:10]} 16. Nxe7+ {[%emt 0:12:59]} Nxe7 {[%emt 0:00:10]} 17. Qe4 {[%emt 0:00:14]} Ng6 {[%emt 0:10:12]} 18. Bf4 {[%emt 0:11:12]} f5 {[%emt 0:00:57]} 19. exf6 {[%emt 0:08:48]} Rxf6 {[%emt 0:02:36]} 20. Bg3 {[%emt 0:00:06]} b6 {[%emt 0:05:34]} 21. Rd3 {[%emt 0:13:52]} Qf8 {[%emt 0:02:09]} 22. Bd6 {[%emt 0:06:34]} Qe8 {[%emt 0:00:17]} 23. Re1 {[%emt 0:05:49]} Qxe4 {[%emt 0:12:05]} 24. fxe4 {[%emt 0:00:01]} Rd8 {[%emt 0:00:08]} 25. Red1 {[%emt 0:00:09]} Kf7 {[%emt 0:00:22]} 26. Bg3 {[%emt 0:02:01]} Rxd3 {[%emt 0:00:12]} 27. Rxd3 {[%emt 0:00:01]} Rc6 {[%emt 0:00:10]} 28. Rd7+ {[%emt 0:01:04]} Kf6 {[%emt 0:00:24]} 29. Rxa7 {[%emt 0:03:01]} Rc2 {[%emt 0:00:09]} 30. b3 {[%emt 0:00:19]} Ne5 {[%emt 0:01:47]} 31. Bxe5+ {[%emt 0:02:18]} Kxe5 {[%emt 0:00:02]} 32. Rxg7 {[%emt 0:00:02]} Rxa2 {[%emt 0:00:09]} 33. Rxh7 {[%emt 0:00:06]} Rb2 {[%emt 0:01:23]} 34. Rh3 {[%emt 0:00:50]} Kxe4 {[%emt 0:00:10]} 35. Re3+ {[%emt 0:01:10]} Kf4 {[%emt 0:00:07]} 36. Kg2 {[%emt 0:00:06]} b5 {[%emt 0:00:15]} 37. h4 {[%emt 0:01:56]} Rc2 {[%emt 0:02:06]} 38. Rh3 {[%emt 0:02:01]} Rc7 {[%emt 0:00:35]} 39. h5 {[%emt 0:00:47]} Rg7+ {[%emt 0:01:12]} 40. Kf1 {[%emt 0:00:16]} Rh7 {[%emt 0:00:24]} 41. h6 {[%emt 0:00:09]} Kg4 {[%emt 0:00:36]} 42. Kg2 {[%emt 0:00:24]} b4 {[%emt 0:01:46]} 43. Rh1 {[%emt 0:00:38]} Kg5 {[%emt 0:00:40]} 44. Kg3 {[%emt 0:00:19]} Kg6 {[%emt 0:01:24]} 45. Kg4 {[%emt 0:00:30]} Kf7 {[%emt 0:00:22]} 46. Kg5 {[%emt 0:00:06]} Kg8 {[%emt 0:00:15]} 47. Rh4 {[%emt 0:00:38]} Rb7 {[%emt 0:00:53]} 48. f4 {[%emt 0:00:54]} Kh7 {[%emt 0:00:19]} 49. f5 {[%emt 0:00:02]} Rb6 {[%emt 0:00:48]} 50. Re4 {[%emt 0:00:11]} Rb5 {[%emt 0:00:19]} 51. Re7+ {[%emt 0:00:08]} Kh8 {[%emt 0:00:49]} 52. Kg6 {[%emt 0:00:07]} Rb8 {[%emt 0:00:41]} 53. f6 {[%emt 0:00:15]} Rg8+ {[%emt 0:00:34]} 54. Rg7 {[%emt 0:00:31]} Rf8 {[%emt 0:00:45]} 55. Rh7+ {[%emt 0:00:05]} Kg8 {[%emt 0:00:10]} 56. f7+ {[%emt 0:00:03]} 1-0

[Event "40th Eastman Open Ghent"]
[Site "Ghent"]
[Date "2017.07.16"]
[Round "4"]
[White "Hamblok, Roel"]
[Black "Lindam, Ingo"]
[Result "1-0"]
[ECO "B23"]
[WhiteElo "2305"]
[BlackElo "2088"]
[Annotator "RC"]
[PlyCount "57"]
[EventDate "2017.??.??"]
[EventType "swiss"]
[EventCountry "BEL"]
[SourceTitle "playchess.com"]
[Source "ChessBase"]
[SourceQuality "1"]
[TimeControl "7200"]

1. e4 {[%emt 0:02:53]} c5 {[%emt 0:00:01]} 2. Nc3 {[%emt 0:00:16]} a6 {[%emt 0:00:02]} 3. f4 {[%emt 0:00:14]} b5 {[%emt 0:00:02]} 4. g3 {[%emt 0:00:07]} Bb7 {[%emt 0:00:23]} 5. Bg2 {[%emt 0:00:06]} e6 {[%emt 0:00:15]} 6. d3 {[%emt 0:00:21]} d5 {[%emt 0:00:27]} 7. Qe2 {[%emt 0:01:59]} Be7 {[%emt 0:11:32]} 8. Nf3 {[%emt 0:08:23]} Nc6 {[%emt 0:03:40]} 9. O-O {[%emt 0:04:00]} b4 {[%emt 0:08:25]} 10. Nd1 {[%emt 0:01:00]} Qb6 {[%emt 0:04:29]} 11. exd5 {[%emt 0:05:37]} exd5 {[%emt 0:00:28]} 12. Ne3 {[%emt 0:00:06]} O-O-O {[%emt 0:02:13]} 13. Ne5 {[%emt 0:07:33]} Nxe5 {[%emt 0:09:29]} 14. fxe5 {[%emt 0:01:33]} Qe6 {[%emt 0:28:47]} 15. Nf5 {[%emt 0:11:03]} Bf6 {[%emt 0:06:07]} 16. Qf2 {[%emt 0:04:26]} Bxe5 {[%emt 0:09:04]} 17. Qxc5+ {[%emt 0:06:25]} Qc6 {[%emt 0:03:15]} 18. Qxb4 {[%emt 0:00:55]} Qxc2 {[%emt 0:00:56]} 19. d4 {[%emt 0:02:00]} a5 {[%emt 0:11:22]} 20. Qe1 {[%emt 0:03:46]} Bc7 {[%emt 0:01:54]} 21. Bg5 {[%emt 0:00:18]} Nf6 {[%emt 0:04:35]} 22. Rc1 {[%emt 0:01:08]} Qa4 {[%emt 0:00:50]} 23. Qc3 {[%emt 0:03:54]} Rd7 {[%emt 0:03:35]} 24. Nd6+ {[%emt 0:17:35]} Kb8 {[%emt 0:00:35]} 25. Nxb7 {[%emt 0:00:24]} Kxb7 {[%emt 0:00:13]} 26. Bxf6 {[%emt 0:00:27]} gxf6 {[%emt 0:00:15]} 27. Rxf6 {[%emt 0:02:41]} Bb6 {[%emt 0:02:41]} 28. Bxd5+ {[%emt 0:04:33]} Rxd5 {[%emt 0:02:54]} 29. Rxb6+ {[%emt 0:00:50]} 1-0

[Event "40th Eastman Open Ghent"]
[Site "Ghent"]
[Date "2017.07.16"]
[Round "4"]
[White "Van Herck, Marcel"]
[Black "Michielsen, Joost"]
[Result "1/2-1/2"]
[ECO "B48"]
[WhiteElo "2156"]
[BlackElo "2409"]
[Annotator "ChessBase"]
[PlyCount "60"]
[EventDate "2017.??.??"]
[EventType "swiss"]
[EventCountry "BEL"]
[SourceTitle "playchess.com"]
[Source "ChessBase"]
[SourceQuality "1"]
[TimeControl "7200"]

1. e4 {[%emt 0:00:41]} c5 {[%emt 0:00:05]} 2. Nf3 {[%emt 0:00:12]} e6 {[%emt 0:00:06]} 3. d4 {[%emt 0:00:05]} cxd4 {[%emt 0:00:04]} 4. Nxd4 {[%emt 0:00:05]} Nc6 {[%emt 0:00:06]} 5. Nc3 {[%emt 0:02:08]} Qc7 {[%emt 0:00:05]} 6. Be3 {[%emt 0:00:41]} a6 {[%emt 0:00:04]} 7. Qf3 {[%emt 0:00:36]} Bd6 {[%emt 0:02:04]} 8. O-O-O {[%emt 0:12:49]} Be5 {[%emt 0:00:45]} 9. Nxc6 {[%emt 0:02:20]} Qxc6 {[%emt 0:24:00]} 10. Bd4 {[%emt 0:01:17]} Bxd4 {[%emt 0:00:33]} 11. Rxd4 {[%emt 0:01:39]} Qc5 {[%emt 0:00:29]} 12. Rd2 {[%emt 0:03:37]} Ne7 {[%emt 0:05:57]} 13. Qg3 {[%emt 0:08:27]} O-O {[%emt 0:00:52]} 14. e5 {[%emt 0:04:54]} Ng6 {[%emt 0:12:47]} 15. f4 {[%emt 0:00:51]} Qb4 {[%emt 0:00:57]} 16. Rf2 {[%emt 0:14:21]} d6 {[%emt 0:11:49]} 17. exd6 {[%emt 0:04:43]} Qxd6 {[%emt 0:00:08]} 18. Bd3 {[%emt 0:01:26]} Bd7 {[%emt 0:01:57]} 19. Rd1 {[%emt 0:00:48]} Qe7 {[%emt 0:05:55]} 20. h4 {[%emt 0:12:07]} Bc6 {[%emt 0:04:00]} 21. h5 {[%emt 0:00:27]} Qh4 {[%emt 0:02:25]} 22. Qxh4 {[%emt 0:01:01]} Nxh4 {[%emt 0:00:07]} 23. Be4 {[%emt 0:03:53]} Nf5 {[%emt 0:04:16]} 24. Rd3 {[%emt 0:02:50]} Rac8 {[%emt 0:02:02]} 25. Rfd2 {[%emt 0:04:26]} Bxe4 {[%emt 0:02:05]} 26. Nxe4 {[%emt 0:00:06]} Rc4 {[%emt 0:00:08]} 27. Re2 {[%emt 0:11:09]} Nd4 {[%emt 0:01:19]} 28. Red2 {[%emt 0:00:08]} Nf5 {[%emt 0:00:26]} 29. Re2 {[%emt 0:00:10]} Nd4 {[%emt 0:03:03]} 30. Red2 {[%emt 0:00:03]} Nf5 1/2-1/2

[Event "40th Eastman Open Ghent"]
[Site "Ghent"]
[Date "2017.07.16"]
[Round "4"]
[White "Voogt, Bob"]
[Black "Abolianin, Arthur"]
[Result "0-1"]
[ECO "B72"]
[WhiteElo "2150"]
[BlackElo "2329"]
[Annotator "ChessBase"]
[PlyCount "112"]
[EventDate "2017.??.??"]
[EventType "swiss"]
[EventCountry "BEL"]
[SourceTitle "playchess.com"]
[Source "ChessBase"]
[SourceQuality "1"]
[TimeControl "7200"]

1. e4 {[%emt 0:00:41]} c5 {[%emt 0:00:17]} 2. Nf3 {[%emt 0:00:10]} g6 {[%emt 0:00:07]} 3. d4 {[%emt 0:00:47]} cxd4 {[%emt 0:00:07]} 4. Nxd4 {[%emt 0:01:17]} Nf6 {[%emt 0:00:11]} 5. Nc3 {[%emt 0:01:39]} d6 {[%emt 0:00:02]} 6. Be2 {[%emt 0:01:58]} Bg7 {[%emt 0:00:03]} 7. Be3 {[%emt 0:00:41]} O-O {[%emt 0:00:04]} 8. O-O {[%emt 0:00:16]} Nc6 {[%emt 0:00:06]} 9. h3 {[%emt 0:02:20]} Bd7 {[%emt 0:07:11]} 10. Qd2 {[%emt 0:02:01]} Nxd4 {[%emt 0:00:47]} 11. Bxd4 {[%emt 0:00:17]} Bc6 {[%emt 0:00:05]} 12. Bd3 {[%emt 0:02:24]} Qa5 {[%emt 0:02:38]} 13. a3 {[%emt 0:05:42]} a6 {[%emt 0:07:42]} 14. Rad1 {[%emt 0:03:40]} Rfc8 {[%emt 0:00:22]} 15. f4 {[%emt 0:03:21]} Nd7 {[%emt 0:00:13]} 16. Bxg7 {[%emt 0:00:28]} Kxg7 {[%emt 0:00:28]} 17. Qf2 {[%emt 0:02:05]} Qc5 {[%emt 0:02:02]} 18. Rfe1 {[%emt 0:03:28]} Rc7 {[%emt 0:04:34]} 19. Qxc5 {[%emt 0:01:25]} Nxc5 {[%emt 0:00:35]} 20. Bc4 {[%emt 0:02:32]} Na4 {[%emt 0:01:41]} 21. Nxa4 {[%emt 0:02:22]} Bxa4 {[%emt 0:00:02]} 22. b3 {[%emt 0:00:48]} Bb5 {[%emt 0:00:05]} 23. Rb1 {[%emt 0:08:18]} Bxc4 {[%emt 0:26:26]} 24. bxc4 {[%emt 0:00:11]} Rb8 {[%emt 0:01:33]} 25. Rb4 {[%emt 0:01:12]} a5 {[%emt 0:00:15]} 26. Rb5 {[%emt 0:06:25]} Rxc4 {[%emt 0:03:52]} 27. Re2 {[%emt 0:03:06]} b6 {[%emt 0:00:59]} 28. Kf2 {[%emt 0:03:19]} Rc3 {[%emt 0:02:44]} 29. Rb3 {[%emt 0:00:49]} Rxb3 {[%emt 0:00:18]} 30. cxb3 {[%emt 0:00:12]} Rc8 {[%emt 0:00:02]} 31. Re3 {[%emt 0:00:38]} Rc2+ {[%emt 0:01:04]} 32. Kf3 {[%emt 0:00:19]} Kf6 {[%emt 0:00:21]} 33. a4 {[%emt 0:02:01]} e6 {[%emt 0:01:44]} 34. Rd3 {[%emt 0:00:29]} Ke7 {[%emt 0:00:26]} 35. g3 {[%emt 0:01:05]} Rh2 {[%emt 0:04:18]} 36. h4 {[%emt 0:01:37]} f5 {[%emt 0:00:10]} 37. Rc3 {[%emt 0:01:53]} Kd7 {[%emt 0:00:13]} 38. Ke3 {[%emt 0:01:16]} Rh1 {[%emt 0:01:57]} 39. Kd3 {[%emt 0:01:59]} Rd1+ {[%emt 0:00:51]} 40. Ke2 {[%emt 0:01:00]} Rd4 {[%emt 0:00:42]} 41. exf5 {[%emt 0:00:10]} gxf5 {[%emt 0:00:09]} 42. Ke3 {[%emt 0:00:30]} Re4+ {[%emt 0:00:11]} 43. Kd3 {[%emt 0:00:09]} h5 {[%emt 0:00:10]} 44. Rc2 {[%emt 0:00:33]} Rb4 {[%emt 0:00:36]} 45. Rc3 {[%emt 0:00:15]} e5 {[%emt 0:01:30]} 46. fxe5 {[%emt 0:00:12]} dxe5 {[%emt 0:00:02]} 47. Ke3 {[%emt 0:00:53]} Kd6 {[%emt 0:01:30]} 48. Rd3+ {[%emt 0:01:18]} Ke6 {[%emt 0:00:02]} 49. Rc3 {[%emt 0:00:16]} Kd5 {[%emt 0:00:39]} 50. Rd3+ {[%emt 0:00:28]} Rd4 {[%emt 0:00:37]} 51. Rc3 {[%emt 0:00:11]} Rg4 {[%emt 0:01:46]} 52. Kf3 {[%emt 0:01:45]} f4 {[%emt 0:02:36]} 53. Rd3+ {[%emt 0:02:47]} Kc5 {[%emt 0:00:26]} 54. gxf4 {[%emt 0:00:50]} Rxf4+ {[%emt 0:00:22]} 55. Kg3 {[%emt 0:00:11]} Rg4+ {[%emt 0:00:20]} 56. Kh3 {[%emt 0:00:07]} e4 {[%emt 0:00:10]} 0-1

[Event "40th Eastman Open Ghent"]
[Site "Ghent"]
[Date "2017.07.16"]
[Round "4"]
[White "Escribano Illan, Juan Carlos"]
[Black "Stone, Andrew M"]
[Result "1/2-1/2"]
[ECO "A05"]
[WhiteElo "1966"]
[BlackElo "2153"]
[Annotator "NA"]
[PlyCount "30"]
[EventDate "2017.??.??"]
[EventType "swiss"]
[EventCountry "BEL"]
[SourceTitle "playchess.com"]
[Source "ChessBase"]
[SourceQuality "1"]
[TimeControl "7200"]

1. Nf3 {[%emt 0:00:08]} Nf6 {[%emt 0:00:41]} 2. b3 {[%emt 0:00:57]} d6 {[%emt 0:01:28]} 3. Bb2 {[%emt 0:00:22]} e5 {[%emt 0:00:10]} 4. c4 {[%emt 0:01:40]} g6 {[%emt 0:01:55]} 5. g3 {[%emt 0:00:21]} Bg7 {[%emt 0:00:13]} 6. Bg2 {[%emt 0:00:10]} O-O {[%emt 0:00:14]} 7. O-O {[%emt 0:00:15]} Re8 {[%emt 0:02:22]} 8. Nc3 {[%emt 0:02:06]} c6 {[%emt 0:01:46]} 9. e4 {[%emt 0:07:39]} Nbd7 {[%emt 0:12:22]} 10. Qc2 {[%emt 0:05:15]} a6 {[%emt 0:11:26]} 11. d4 {[%emt 0:04:47]} Qc7 {[%emt 0:04:21]} 12. Rfd1 {[%emt 0:10:56]} b5 {[%emt 0:11:19]} 13. cxb5 {[%emt 0:27:59]} cxb5 {[%emt 0:00:41]} 14. dxe5 {[%emt 0:06:35]} dxe5 {[%emt 0:05:32]} 15. Rac1 {[%emt 0:02:01]} Bb7 {[%emt 0:17:01]} 1/2-1/2

[Event "40th Eastman Open Ghent"]
[Site "Ghent"]
[Date "2017.07.17"]
[Round "5"]
[White "Michielsen, Joost"]
[Black "Froeyman, Helmut"]
[Result "1/2-1/2"]
[ECO "C99"]
[WhiteElo "2409"]
[BlackElo "2264"]
[Annotator "ChessBase"]
[PlyCount "91"]
[EventDate "2017.??.??"]
[EventType "swiss"]
[EventCountry "BEL"]
[SourceTitle "playchess.com"]
[Source "ChessBase"]
[SourceQuality "1"]
[TimeControl "7200"]

1. e4 {[%emt 0:00:26]} e5 {[%emt 0:00:07]} 2. Nf3 {[%emt 0:00:05]} Nc6 {[%emt 0:00:03]} 3. Bb5 {[%emt 0:00:05]} a6 {[%emt 0:00:06]} 4. Ba4 {[%emt 0:00:04]} Nf6 {[%emt 0:00:04]} 5. O-O {[%emt 0:00:06]} Be7 {[%emt 0:00:03]} 6. Re1 {[%emt 0:00:22]} b5 {[%emt 0:00:08]} 7. Bb3 {[%emt 0:00:04]} d6 {[%emt 0:00:03]} 8. c3 {[%emt 0:00:09]} O-O {[%emt 0:00:05]} 9. h3 {[%emt 0:00:08]} Na5 {[%emt 0:00:04]} 10. Bc2 {[%emt 0:00:05]} c5 {[%emt 0:00:02]} 11. d4 {[%emt 0:00:06]} Qc7 {[%emt 0:00:04]} 12. Nbd2 {[%emt 0:00:07]} cxd4 {[%emt 0:00:04]} 13. cxd4 {[%emt 0:00:08]} Nc6 {[%emt 0:00:03]} 14. Nb3 {[%emt 0:02:57]} a5 {[%emt 0:00:19]} 15. Be3 {[%emt 0:01:35]} a4 {[%emt 0:00:12]} 16. Nbd2 {[%emt 0:00:06]} Bd7 {[%emt 0:00:07]} 17. Rc1 {[%emt 0:09:24]} Qb7 {[%emt 0:00:32]} 18. Qe2 {[%emt 0:02:35]} Rfe8 {[%emt 0:00:36]} 19. Bd3 {[%emt 0:02:24]} Rab8 {[%emt 0:00:16]} 20. Nf1 {[%emt 0:17:58]} Bd8 {[%emt 0:16:09]} 21. Ng3 {[%emt 0:00:34]} h6 {[%emt 0:06:39]} 22. dxe5 {[%emt 0:02:19]} Nxe5 {[%emt 0:07:47]} 23. Bb1 {[%emt 0:03:30]} Bb6 {[%emt 0:18:52]} 24. Red1 {[%emt 0:08:11]} Bxe3 {[%emt 0:11:16]} 25. Qxe3 {[%emt 0:00:07]} Rbc8 {[%emt 0:08:36]} 26. Rxc8 {[%emt 0:02:32]} Qxc8 {[%emt 0:07:31]} 27. b3 {[%emt 0:04:10]} axb3 {[%emt 0:01:14]} 28. axb3 {[%emt 0:00:15]} Nxf3+ {[%emt 0:03:35]} 29. Qxf3 {[%emt 0:00:08]} Qc5 {[%emt 0:00:36]} 30. Qd3 {[%emt 0:06:48]} Be6 {[%emt 0:04:13]} 31. Ne2 {[%emt 0:07:05]} Qb4 {[%emt 0:06:09]} 32. Nd4 {[%emt 0:02:07]} Bd7 {[%emt 0:02:39]} 33. f3 {[%emt 0:07:33]} Rc8 {[%emt 0:01:39]} 34. Kh1 {[%emt 0:00:57]} Rc3 {[%emt 0:03:16]} 35. Qd2 {[%emt 0:00:29]} Qc5 {[%emt 0:00:38]} 36. Qb2 {[%emt 0:02:41]} b4 {[%emt 0:01:19]} 37. Ne2 {[%emt 0:00:10]} Qf2 {[%emt 0:03:18]} 38. Qa2 {[%emt 0:04:25]} Re3 {[%emt 0:02:40]} 39. Nf4 {[%emt 0:02:49]} Re1+ {[%emt 0:01:22]} 40. Rxe1 {[%emt 0:00:07]} Qxe1+ {[%emt 0:00:02]} 41. Kh2 {[%emt 0:00:09]} g5 {[%emt 0:02:21]} 42. Nd3 {[%emt 0:02:41]} Qc3 {[%emt 0:00:18]} 43. Qa5 {[%emt 0:07:29]} Qxb3 {[%emt 0:00:52]} 44. Qxb4 {[%emt 0:00:07]} Qxb4 {[%emt 0:00:12]} 45. Nxb4 {[%emt 0:00:04]} Kf8 {[%emt 0:00:10]} 46. Kg3 1/2-1/2